[Event "*** Titled Tuesday Blitz"]
[Site "Chess.com"]
[Date "2019.10.01"]
[Round "3"]
[White "FranciscodelaF"]
[Black "Grandmaster1369"]
[Result "0-1"]
[WhiteElo "2450"]
[BlackElo "2674"]
[TimeControl "180+2"]
[EndTime "13:37:51 PDT"]
[Termination "Grandmaster1369 won on time"]

1. d4 {[%clk 0:03:01.9]} 1... Nf6 {[%clk 0:02:59.2]} 2. c4 {[%clk 0:03:00.4]}
2... e6 {[%clk 0:02:59]} 3. g3 {[%clk 0:03:00.9]} 3... Bb4+ {[%clk 0:02:59.4]}
4. Bd2 {[%clk 0:03:01.8]} 4... Qe7 {[%clk 0:02:55.6]} 5. Nf3 {[%clk 0:02:59.6]}
5... Nc6 {[%clk 0:02:54.6]} 6. Bg2 {[%clk 0:02:58.5]} 6... Bxd2+ {[%clk
0:02:51.9]} 7. Qxd2 {[%clk 0:02:59.7]} 7... Ne4 {[%clk 0:02:52.1]} 8. Qe3 {[%clk
0:02:59.2]} 8... Qb4+ {[%clk 0:02:52.3]} 9. Nbd2 {[%clk 0:03:00.1]} 9... Nxd2
{[%clk 0:02:51]} 10. Qxd2 {[%clk 0:02:55.8]} 10... Qxc4 {[%clk 0:02:51.1]} 11.
O-O {[%clk 0:02:56.2]} 11... Qb4 {[%clk 0:02:46.7]} 12. Qc2 {[%clk 0:02:47.8]}
12... Qe7 {[%clk 0:02:40.4]} 13. e4 {[%clk 0:02:45.4]} 13... O-O {[%clk
0:02:32.4]} 14. d5 {[%clk 0:02:46.1]} 14... exd5 {[%clk 0:02:28.8]} 15. exd5
{[%clk 0:02:46.9]} 15... Nb4 {[%clk 0:02:30.4]} 16. Qxc7 {[%clk 0:02:45.6]}
16... Nxd5 {[%clk 0:02:32]} 17. Qc4 {[%clk 0:02:44]} 17... Nf6 {[%clk
0:02:32.4]} 18. Rfe1 {[%clk 0:02:44.4]} 18... Qd8 {[%clk 0:02:29.3]} 19. Rad1
{[%clk 0:02:38.7]} 19... d5 {[%clk 0:02:30.8]} 20. Qb4 {[%clk 0:02:37.3]} 20...
Bg4 {[%clk 0:02:21.2]} 21. h3 {[%clk 0:02:15.7]} 21... Bxf3 {[%clk 0:02:22]} 22.
Bxf3 {[%clk 0:02:17]} 22... Qd7 {[%clk 0:02:23.7]} 23. Kg2 {[%clk 0:02:15.7]}
23... Rfe8 {[%clk 0:02:24.5]} 24. Rxe8+ {[%clk 0:02:15.4]} 24... Rxe8 {[%clk
0:02:26.4]} 25. Qa5 {[%clk 0:02:16.5]} 25... b6 {[%clk 0:02:26.7]} 26. Qd2
{[%clk 0:02:09.4]} 26... Rd8 {[%clk 0:02:21.3]} 27. Qd4 {[%clk 0:02:05.5]} 27...
Qc7 {[%clk 0:02:19.3]} 28. Rd3 {[%clk 0:02:01.1]} 28... Qc5 {[%clk 0:02:19.5]}
29. Qa4 {[%clk 0:01:58.5]} 29... a5 {[%clk 0:02:17.3]} 30. Rc3 {[%clk 0:01:58]}
30... Qe7 {[%clk 0:02:10.6]} 31. Qb5 {[%clk 0:01:40.5]} 31... d4 {[%clk
0:01:55.9]} 32. Rc6 {[%clk 0:01:35]} 32... Nd7 {[%clk 0:01:45.9]} 33. Rc7 {[%clk
0:01:25]} 33... Qd6 {[%clk 0:01:45.9]} 34. Rc6 {[%clk 0:01:22.8]} 34... Qb8
{[%clk 0:01:25.4]} 35. Bd5 {[%clk 0:00:47.6]} 35... d3 {[%clk 0:01:16.7]} 36.
Bxf7+ {[%clk 0:00:23.3]} 36... Kxf7 {[%clk 0:01:12.6]} 37. Qd5+ {[%clk
0:00:25.2]} 37... Kf8 {[%clk 0:01:07.8]} 38. Rd6 {[%clk 0:00:26.5]} 38... Qc7
{[%clk 0:00:58.4]} 39. Qxd3 {[%clk 0:00:27.3]} 39... Ke7 {[%clk 0:00:59.2]} 40.
Rd5 {[%clk 0:00:27.1]} 40... Nf6 {[%clk 0:00:56.9]} 41. Qe3+ {[%clk 0:00:27.4]}
41... Kf7 {[%clk 0:00:56.2]} 42. Re5 {[%clk 0:00:28.5]} 42... Re8 {[%clk
0:00:56.1]} 43. Qb3+ {[%clk 0:00:28.2]} 43... Kf8 {[%clk 0:00:52.7]} 44. Rb5
{[%clk 0:00:29.3]} 44... Qc6+ {[%clk 0:00:52.6]} 45. Kh2 {[%clk 0:00:30.8]}
45... Re1 {[%clk 0:00:51.4]} 46. Qa3+ {[%clk 0:00:28.5]} 46... Ke8 {[%clk
0:00:51.9]} 0-1

[Event "*** Titled Tuesday Blitz"]
[Site "Chess.com"]
[Date "2019.10.01"]
[Round "3"]
[White "Shubinkirill2003"]
[Black "VerdeNotte"]
[Result "0-1"]
[WhiteElo "2537"]
[BlackElo "2787"]
[TimeControl "180+2"]
[EndTime "13:37:53 PDT"]
[Termination "VerdeNotte won on time"]

1. e4 {[%clk 0:03:01]} 1... c5 {[%clk 0:03:00.2]} 2. Nf3 {[%clk 0:03:01.4]} 2...
Nc6 {[%clk 0:03:01.6]} 3. Bb5 {[%clk 0:03:01.7]} 3... d6 {[%clk 0:03:01]} 4. O-O
{[%clk 0:03:00.3]} 4... Bd7 {[%clk 0:03:02.2]} 5. c3 {[%clk 0:03:00.2]} 5... a6
{[%clk 0:03:02.6]} 6. Bd3 {[%clk 0:02:59.8]} 6... Nf6 {[%clk 0:02:56.3]} 7. Bc2
{[%clk 0:03:00.4]} 7... Bg4 {[%clk 0:02:54]} 8. d3 {[%clk 0:02:59.3]} 8... e6
{[%clk 0:02:51.9]} 9. Re1 {[%clk 0:02:59.4]} 9... Be7 {[%clk 0:02:52.6]} 10.
Nbd2 {[%clk 0:02:59]} 10... O-O {[%clk 0:02:46.3]} 11. Nf1 {[%clk 0:02:59.8]}
11... d5 {[%clk 0:02:45.3]} 12. e5 {[%clk 0:02:57.1]} 12... Nd7 {[%clk
0:02:46.3]} 13. d4 {[%clk 0:02:55]} 13... cxd4 {[%clk 0:02:45.2]} 14. cxd4
{[%clk 0:02:53.5]} 14... Qb6 {[%clk 0:02:42.4]} 15. Be3 {[%clk 0:02:42.2]} 15...
Qxb2 {[%clk 0:02:30.1]} 16. Rb1 {[%clk 0:02:40.2]} 16... Bxf3 {[%clk 0:02:29.6]}
17. Qd3 {[%clk 0:02:18.4]} 17... Be4 {[%clk 0:02:29.8]} 18. Qxe4 {[%clk
0:02:18.9]} 18... dxe4 {[%clk 0:02:29.8]} 19. Rxb2 {[%clk 0:02:19.4]} 19... b5
{[%clk 0:02:20.5]} 20. Bxe4 {[%clk 0:02:19.5]} 20... Rac8 {[%clk 0:02:21.8]} 21.
Nd2 {[%clk 0:01:58]} 21... Nb6 {[%clk 0:02:16]} 22. Nb3 {[%clk 0:01:50.6]} 22...
Nc4 {[%clk 0:02:09.4]} 23. Rbe2 {[%clk 0:01:45.7]} 23... Nb4 {[%clk 0:02:08.9]}
24. Bc1 {[%clk 0:01:36.3]} 24... Rfd8 {[%clk 0:02:06.2]} 25. f4 {[%clk
0:01:33.3]} 25... a5 {[%clk 0:02:02.4]} 26. a3 {[%clk 0:01:07.3]} 26... a4
{[%clk 0:01:55.1]} 27. Na1 {[%clk 0:01:00.6]} 27... Nd5 {[%clk 0:01:46.7]} 28.
Bxd5 {[%clk 0:00:52.4]} 28... Rxd5 {[%clk 0:01:47.3]} 29. Nc2 {[%clk 0:00:53.9]}
29... h5 {[%clk 0:01:44.5]} 30. Rf1 {[%clk 0:00:45.8]} 30... g6 {[%clk
0:01:44.7]} 31. g3 {[%clk 0:00:44.9]} 31... Rd7 {[%clk 0:01:37.3]} 32. Kg2
{[%clk 0:00:22.7]} 32... Nb6 {[%clk 0:01:36.3]} 33. Bb2 {[%clk 0:00:10.6]} 33...
Nd5 {[%clk 0:01:24.3]} 34. Rff2 {[%clk 0:00:09.4]} 34... Bd8 {[%clk 0:01:03.2]}
35. Ne3 {[%clk 0:00:06.9]} 35... Bb6 {[%clk 0:01:04.3]} 36. Nxd5 {[%clk
0:00:05.9]} 36... Rxd5 {[%clk 0:01:05.4]} 37. Rd2 {[%clk 0:00:04.9]} 37... Rc4
{[%clk 0:01:04.6]} 38. Rc2 {[%clk 0:00:04.7]} 38... Bxd4 {[%clk 0:00:54.2]} 39.
Rxc4 {[%clk 0:00:04.7]} 39... bxc4 {[%clk 0:00:56.1]} 40. Bxd4 {[%clk 0:00:04]}
40... Rxd4 {[%clk 0:00:58]} 41. Rc2 {[%clk 0:00:05]} 41... h4 {[%clk 0:00:52.1]}
42. Kf3 {[%clk 0:00:04]} 42... hxg3 {[%clk 0:00:53.1]} 43. hxg3 {[%clk 0:00:04]}
43... Rd3+ {[%clk 0:00:53.7]} 44. Kg4 {[%clk 0:00:05.1]} 44... c3 {[%clk
0:00:53.9]} 45. Kh4 {[%clk 0:00:04.6]} 45... Kf8 {[%clk 0:00:51.4]} 46. g4
{[%clk 0:00:03]} 46... Ke7 {[%clk 0:00:52.7]} 47. Kg5 {[%clk 0:00:04.2]} 47...
Rf3 {[%clk 0:00:48.5]} 48. Rc1 {[%clk 0:00:03]} 48... Kd7 {[%clk 0:00:49.7]} 0-1

[Event "*** Titled Tuesday Blitz"]
[Site "Chess.com"]
[Date "2019.10.01"]
[Round "3"]
[White "Caisachess"]
[Black "j_coca"]
[Result "0-1"]
[WhiteElo "2339"]
[BlackElo "2099"]
[TimeControl "180+2"]
[EndTime "13:37:53 PDT"]
[Termination "j_coca won by checkmate"]

1. e4 {[%clk 0:03:01.9]} 1... g6 {[%clk 0:01:44]} 2. d4 {[%clk 0:03:00]} 2...
Bg7 {[%clk 0:01:45.1]} 3. Nf3 {[%clk 0:02:59.5]} 3... d6 {[%clk 0:01:45.8]} 4.
Nc3 {[%clk 0:02:59.5]} 4... Nh6 {[%clk 0:01:46.3]} 5. Bc4 {[%clk 0:02:55.7]}
5... O-O {[%clk 0:01:47]} 6. h3 {[%clk 0:02:55.2]} 6... Kh8 {[%clk 0:01:47.6]}
7. a4 {[%clk 0:02:56.6]} 7... Nc6 {[%clk 0:01:47.2]} 8. Be3 {[%clk 0:02:56.6]}
8... a6 {[%clk 0:01:47.6]} 9. O-O {[%clk 0:02:57]} 9... Qe8 {[%clk 0:01:48.4]}
10. d5 {[%clk 0:02:53.1]} 10... Nd8 {[%clk 0:01:48.6]} 11. Qd2 {[%clk 0:02:50]}
11... Ng8 {[%clk 0:01:49.1]} 12. Ne2 {[%clk 0:02:44.2]} 12... e5 {[%clk
0:01:50.2]} 13. dxe6 {[%clk 0:02:43.1]} 13... fxe6 {[%clk 0:01:51.1]} 14. c3
{[%clk 0:02:42]} 14... Nc6 {[%clk 0:01:47]} 15. Nfd4 {[%clk 0:02:36.7]} 15...
Ne5 {[%clk 0:01:46.2]} 16. Bb3 {[%clk 0:02:32.5]} 16... Nf7 {[%clk 0:01:45.7]}
17. f4 {[%clk 0:02:32.9]} 17... Bd7 {[%clk 0:01:42.3]} 18. f5 {[%clk 0:02:25.7]}
18... gxf5 {[%clk 0:01:42.9]} 19. exf5 {[%clk 0:02:26.5]} 19... e5 {[%clk
0:01:44.2]} 20. Ne6 {[%clk 0:02:27.4]} 20... Bxe6 {[%clk 0:01:41.5]} 21. Bxe6
{[%clk 0:02:24.7]} 21... Nf6 {[%clk 0:01:38.8]} 22. Ng3 {[%clk 0:02:18.9]} 22...
Nd8 {[%clk 0:01:38.9]} 23. Bc4 {[%clk 0:02:16.4]} 23... Qe7 {[%clk 0:01:34.9]}
24. Rae1 {[%clk 0:02:15]} 24... c6 {[%clk 0:01:35.2]} 25. Bg5 {[%clk 0:02:03.8]}
25... d5 {[%clk 0:01:35.9]} 26. Bb3 {[%clk 0:02:03.6]} 26... Nf7 {[%clk
0:01:33.8]} 27. h4 {[%clk 0:01:54.6]} 27... e4 {[%clk 0:01:28.9]} 28. c4 {[%clk
0:01:47.8]} 28... Rad8 {[%clk 0:01:23.8]} 29. cxd5 {[%clk 0:01:48.8]} 29... cxd5
{[%clk 0:01:25.7]} 30. Bxd5 {[%clk 0:01:19.7]} 30... Qc5+ {[%clk 0:01:19.7]} 31.
Kh1 {[%clk 0:01:12.3]} 31... Qxd5 {[%clk 0:01:14.6]} 32. Qf4 {[%clk 0:01:12]}
32... Rde8 {[%clk 0:01:07]} 33. h5 {[%clk 0:01:09.5]} 33... h6 {[%clk
0:01:05.7]} 34. Bxf6 {[%clk 0:01:09]} 34... Bxf6 {[%clk 0:01:06.7]} 35. Nxe4
{[%clk 0:01:10.6]} 35... Bxb2 {[%clk 0:00:59.8]} 36. f6 {[%clk 0:01:02.6]} 36...
Rg8 {[%clk 0:00:57]} 37. Rf3 {[%clk 0:00:44]} 37... Be5 {[%clk 0:00:52.9]} 38.
Qf5 {[%clk 0:00:43.7]} 38... Qe6 {[%clk 0:00:45.9]} 39. Qxe6 {[%clk 0:00:41.9]}
39... Rxe6 {[%clk 0:00:47.8]} 40. Nc5 {[%clk 0:00:43.4]} 40... Ree8 {[%clk
0:00:45.1]} 41. Nxb7 {[%clk 0:00:42.6]} 41... Bc7 {[%clk 0:00:41.2]} 42. Rc1
{[%clk 0:00:40.2]} 42... Bb6 {[%clk 0:00:37.2]} 43. Rc6 {[%clk 0:00:37.1]} 43...
Bd4 {[%clk 0:00:36.9]} 44. Rf1 {[%clk 0:00:22.6]} 44... Rg5 {[%clk 0:00:36.4]}
45. g4 {[%clk 0:00:17.4]} 45... Rxg4 {[%clk 0:00:36.7]} 46. Nd6 {[%clk
0:00:18.6]} 46... Nxd6 {[%clk 0:00:35.3]} 47. Rxd6 {[%clk 0:00:20.5]} 47... Reg8
{[%clk 0:00:36.4]} 48. f7 {[%clk 0:00:21.2]} 48... Rh4# {[%clk 0:00:37.1]} 0-1

[Event "*** Titled Tuesday Blitz"]
[Site "Chess.com"]
[Date "2019.10.01"]
[Round "3"]
[White "Tjktiger"]
[Black "kosmeg"]
[Result "1-0"]
[WhiteElo "2812"]
[BlackElo "2501"]
[TimeControl "180+2"]
[EndTime "13:38:02 PDT"]
[Termination "Tjktiger won by resignation"]

1. c4 {[%clk 0:03:01.8]} 1... e5 {[%clk 0:02:59.5]} 2. Nc3 {[%clk 0:03:02.2]}
2... Bb4 {[%clk 0:03:00.1]} 3. Nd5 {[%clk 0:03:02.9]} 3... Bc5 {[%clk
0:03:01.3]} 4. Nf3 {[%clk 0:03:03.5]} 4... c6 {[%clk 0:03:00.4]} 5. Nc3 {[%clk
0:03:03.1]} 5... d6 {[%clk 0:02:59.9]} 6. e3 {[%clk 0:03:04]} 6... Bb6 {[%clk
0:02:49]} 7. d4 {[%clk 0:03:04.6]} 7... Qe7 {[%clk 0:02:44.5]} 8. g3 {[%clk
0:03:02.2]} 8... f5 {[%clk 0:02:42.9]} 9. Bg2 {[%clk 0:03:02.2]} 9... e4 {[%clk
0:02:43.1]} 10. Nd2 {[%clk 0:03:01.1]} 10... Nf6 {[%clk 0:02:44.1]} 11. a4
{[%clk 0:02:58.7]} 11... a5 {[%clk 0:02:41.3]} 12. b3 {[%clk 0:02:51.3]} 12...
Na6 {[%clk 0:02:38.3]} 13. Ba3 {[%clk 0:02:52.1]} 13... Nb4 {[%clk 0:02:39.1]}
14. O-O {[%clk 0:02:49.5]} 14... O-O {[%clk 0:02:38.3]} 15. Na2 {[%clk
0:02:49.2]} 15... Nd3 {[%clk 0:02:35.6]} 16. Nc1 {[%clk 0:02:48.4]} 16... Nxc1
{[%clk 0:02:34.3]} 17. Qxc1 {[%clk 0:02:46.4]} 17... Be6 {[%clk 0:02:28.4]} 18.
c5 {[%clk 0:02:31]} 18... dxc5 {[%clk 0:02:26.4]} 19. Nc4 {[%clk 0:02:32]} 19...
Ba7 {[%clk 0:02:19.8]} 20. Nxa5 {[%clk 0:02:28.4]} 20... Qc7 {[%clk 0:02:08.4]}
21. Nc4 {[%clk 0:02:25.6]} 21... b5 {[%clk 0:02:05.8]} 22. axb5 {[%clk
0:02:01.3]} 22... cxb5 {[%clk 0:02:07.7]} 23. Nd2 {[%clk 0:02:02.2]} 23... Rac8
{[%clk 0:01:56.2]} 24. Bxc5 {[%clk 0:01:43.9]} 24... Bxc5 {[%clk 0:01:56.2]} 25.
dxc5 {[%clk 0:01:45.7]} 25... Qxc5 {[%clk 0:01:56.9]} 26. Qxc5 {[%clk
0:01:14.6]} 26... Rxc5 {[%clk 0:01:58.8]} 27. Ra6 {[%clk 0:01:00.9]} 27... Rd8
{[%clk 0:01:53.2]} 28. Rxe6 {[%clk 0:00:59.5]} 28... Rxd2 {[%clk 0:01:53]} 29.
Bh3 {[%clk 0:00:47.5]} 29... Kf7 {[%clk 0:01:38.4]} 30. Rb6 {[%clk 0:00:46.9]}
30... Rb2 {[%clk 0:01:38.4]} 31. Ra1 {[%clk 0:00:44.2]} 31... Kg6 {[%clk
0:01:33.3]} 32. Rb7 {[%clk 0:00:37.3]} 32... Rxb3 {[%clk 0:01:17.2]} 33. Raa7
{[%clk 0:00:37.3]} 33... Nh5 {[%clk 0:01:16.9]} 34. Rb6+ {[%clk 0:00:32.2]}
34... Kg5 {[%clk 0:01:14.5]} 35. Bf1 {[%clk 0:00:31.1]} 35... Rb1 {[%clk
0:01:08.7]} 36. Kg2 {[%clk 0:00:32.2]} 36... g6 {[%clk 0:00:58.6]} 37. Rxh7
{[%clk 0:00:29.7]} 37... f4 {[%clk 0:00:13]} 38. exf4+ {[%clk 0:00:27.4]} 38...
Kf5 {[%clk 0:00:14.2]} 39. Rf7+ {[%clk 0:00:26]} 1-0

[Event "*** Titled Tuesday Blitz"]
[Site "Chess.com"]
[Date "2019.10.01"]
[Round "3"]
[White "tigra"]
[Black "Siemba"]
[Result "1-0"]
[WhiteElo "2705"]
[BlackElo "2235"]
[TimeControl "180+2"]
[EndTime "13:38:13 PDT"]
[Termination "tigra won by checkmate"]

1. e4 {[%clk 0:02:44.7]} 1... c5 {[%clk 0:02:59.2]} 2. Nf3 {[%clk 0:02:43.8]}
2... Nc6 {[%clk 0:02:45.3]} 3. d4 {[%clk 0:02:41.1]} 3... cxd4 {[%clk
0:02:47.2]} 4. Nxd4 {[%clk 0:02:35.6]} 4... Nf6 {[%clk 0:02:48.3]} 5. Nc3 {[%clk
0:02:36.4]} 5... e5 {[%clk 0:02:49]} 6. Ndb5 {[%clk 0:02:36.8]} 6... d6 {[%clk
0:02:50.2]} 7. Bg5 {[%clk 0:02:37.6]} 7... a6 {[%clk 0:02:50.4]} 8. Na3 {[%clk
0:02:39.2]} 8... b5 {[%clk 0:02:51.1]} 9. Nd5 {[%clk 0:02:40.8]} 9... Be7 {[%clk
0:02:51]} 10. Bxf6 {[%clk 0:02:42.1]} 10... Bxf6 {[%clk 0:02:52.6]} 11. c4
{[%clk 0:02:43.9]} 11... b4 {[%clk 0:02:52.4]} 12. Nc2 {[%clk 0:02:44.7]} 12...
O-O {[%clk 0:02:54]} 13. g3 {[%clk 0:02:44]} 13... a5 {[%clk 0:02:54.2]} 14. Bg2
{[%clk 0:02:44]} 14... Be6 {[%clk 0:02:50.9]} 15. O-O {[%clk 0:02:37.3]} 15...
Bg5 {[%clk 0:02:41.7]} 16. Qd3 {[%clk 0:02:16.5]} 16... Rb8 {[%clk 0:02:30.2]}
17. Rfd1 {[%clk 0:02:05]} 17... Qd7 {[%clk 0:02:17.5]} 18. Qf1 {[%clk
0:01:34.5]} 18... b3 {[%clk 0:01:56.1]} 19. Na3 {[%clk 0:01:11.1]} 19... Nd4
{[%clk 0:01:19.4]} 20. h4 {[%clk 0:00:57.7]} 20... Bh6 {[%clk 0:01:16.3]} 21.
Kh2 {[%clk 0:00:56.3]} 21... bxa2 {[%clk 0:01:13.6]} 22. Rxa2 {[%clk 0:00:57.3]}
22... Rb3 {[%clk 0:01:13.5]} 23. Rd3 {[%clk 0:00:58.3]} 23... Rfb8 {[%clk
0:01:01.3]} 24. Rxb3 {[%clk 0:00:53.6]} 24... Rxb3 {[%clk 0:01:03.2]} 25. Nc3
{[%clk 0:00:51.3]} 25... Qc6 {[%clk 0:00:28.9]} 26. Qb1 {[%clk 0:00:47.5]} 26...
Bxc4 {[%clk 0:00:24.9]} 27. Nxc4 {[%clk 0:00:48.1]} 27... Qxc4 {[%clk
0:00:26.8]} 28. Rxa5 {[%clk 0:00:47.4]} 28... g6 {[%clk 0:00:27.2]} 29. Ra1
{[%clk 0:00:23.8]} 29... Qb4 {[%clk 0:00:22.3]} 30. Nd5 {[%clk 0:00:13.1]} 30...
Qd2 {[%clk 0:00:19.1]} 31. Qf1 {[%clk 0:00:10.1]} 31... Rxb2 {[%clk 0:00:10]}
32. Nf6+ {[%clk 0:00:10.9]} 32... Kg7 {[%clk 0:00:10.4]} 33. Ne8+ {[%clk
0:00:11.1]} 33... Kf8 {[%clk 0:00:11.4]} 34. Ra8 {[%clk 0:00:13]} 34... Qxf2
{[%clk 0:00:06.3]} 35. Nf6+ {[%clk 0:00:14]} 35... Ke7 {[%clk 0:00:05.3]} 36.
Ng8+ {[%clk 0:00:14.8]} 36... Kd7 {[%clk 0:00:04.3]} 37. Ra7+ {[%clk 0:00:13.8]}
37... Kc6 {[%clk 0:00:04.2]} 38. Qc4+ {[%clk 0:00:08.8]} 38... Kb6 {[%clk
0:00:02.7]} 39. Qa6+ {[%clk 0:00:07.9]} 39... Kc5 {[%clk 0:00:03.8]} 40. Rc7+
{[%clk 0:00:09.8]} 40... Kb4 {[%clk 0:00:04.9]} 41. Rc4+ {[%clk 0:00:10.2]}
41... Kb3 {[%clk 0:00:04.8]} 42. Qa4# {[%clk 0:00:12.1]} 1-0

[Event "*** Titled Tuesday Blitz"]
[Site "Chess.com"]
[Date "2019.10.01"]
[Round "3"]
[White "Tonychess32"]
[Black "francyIM"]
[Result "0-1"]
[WhiteElo "2444"]
[BlackElo "2662"]
[TimeControl "180+2"]
[EndTime "13:38:14 PDT"]
[Termination "francyIM won by resignation"]

1. e4 {[%clk 0:03:01.9]} 1... c6 {[%clk 0:03:00.7]} 2. d4 {[%clk 0:03:02.8]}
2... d5 {[%clk 0:03:02.3]} 3. Nc3 {[%clk 0:03:04.7]} 3... dxe4 {[%clk
0:03:03.2]} 4. Nxe4 {[%clk 0:03:06.6]} 4... Nf6 {[%clk 0:03:04.8]} 5. Nxf6+
{[%clk 0:03:08]} 5... exf6 {[%clk 0:03:06.7]} 6. c3 {[%clk 0:03:09.6]} 6... Bd6
{[%clk 0:03:07.9]} 7. Bd3 {[%clk 0:03:11.1]} 7... O-O {[%clk 0:03:09.2]} 8. Ne2
{[%clk 0:03:12.9]} 8... Re8 {[%clk 0:03:10.8]} 9. Be3 {[%clk 0:03:11]} 9... Nd7
{[%clk 0:03:09.8]} 10. Qc2 {[%clk 0:03:12.3]} 10... h5 {[%clk 0:03:10.4]} 11.
O-O-O {[%clk 0:03:13.3]} 11... Nf8 {[%clk 0:03:11.4]} 12. h4 {[%clk 0:03:06.6]}
12... Be6 {[%clk 0:03:10.9]} 13. Kb1 {[%clk 0:03:04.9]} 13... b5 {[%clk
0:03:11.6]} 14. Rhe1 {[%clk 0:02:21.7]} 14... a5 {[%clk 0:03:11.4]} 15. Nf4
{[%clk 0:02:02.4]} 15... Bxf4 {[%clk 0:03:11.9]} 16. Bxf4 {[%clk 0:02:03.8]}
16... a4 {[%clk 0:03:13.8]} 17. Re2 {[%clk 0:01:17.9]} 17... Qd5 {[%clk
0:03:12.4]} 18. c4 {[%clk 0:01:06.7]} 18... bxc4 {[%clk 0:03:10.8]} 19. Be4
{[%clk 0:01:07.9]} 19... Qb5 {[%clk 0:03:05.3]} 20. Qc3 {[%clk 0:00:55.6]} 20...
a3 {[%clk 0:02:58.5]} 21. Ka1 {[%clk 0:00:56.3]} 21... axb2+ {[%clk 0:02:50.1]}
22. Rxb2 {[%clk 0:00:58.2]} 22... Qa4 {[%clk 0:02:49.9]} 23. Bc2 {[%clk
0:00:56]} 23... Qa3 {[%clk 0:02:47.3]} 24. Qxa3 {[%clk 0:00:51.8]} 24... Rxa3
{[%clk 0:02:49.2]} 25. Bd6 {[%clk 0:00:44.9]} 25... Ra6 {[%clk 0:02:40.8]} 26.
Rb8 {[%clk 0:00:32.9]} 26... Rxb8 {[%clk 0:02:38.3]} 27. Bxb8 {[%clk 0:00:34.8]}
27... Nd7 {[%clk 0:02:39.7]} 28. Bf4 {[%clk 0:00:34.7]} 28... Nb6 {[%clk
0:02:38.9]} 29. Bd6 {[%clk 0:00:20.4]} 29... c3 {[%clk 0:02:36.7]} 30. a3 {[%clk
0:00:09.3]} 30... Nc4 {[%clk 0:02:35.3]} 31. Bc5 {[%clk 0:00:08.4]} 31... Nxa3
{[%clk 0:02:35.8]} 32. Bd3 {[%clk 0:00:06.2]} 32... Nb5+ {[%clk 0:02:26.9]} 33.
Kb1 {[%clk 0:00:07.3]} 33... Bd5 {[%clk 0:02:26.2]} 34. f3 {[%clk 0:00:08.2]}
34... Ra2 {[%clk 0:02:22.5]} 35. Re1 {[%clk 0:00:09.1]} 35... c2+ {[%clk
0:02:15.6]} 36. Bxc2 {[%clk 0:00:09.3]} 36... g6 {[%clk 0:02:01]} 37. Re8+
{[%clk 0:00:06.4]} 37... Kh7 {[%clk 0:02:02.1]} 38. Be4 {[%clk 0:00:03.2]} 38...
Nc3+ {[%clk 0:01:58]} 39. Kc1 {[%clk 0:00:04.4]} 39... Rxg2 {[%clk 0:01:58.5]}
40. Bxd5 {[%clk 0:00:05.3]} 40... Nxd5 {[%clk 0:01:59.2]} 41. Rf8 {[%clk
0:00:06.1]} 41... Kg7 {[%clk 0:01:59.7]} 42. Rc8 {[%clk 0:00:07.7]} 42... Rg3
{[%clk 0:01:52.2]} 43. Bf8+ {[%clk 0:00:08.5]} 43... Kh7 {[%clk 0:01:52.7]} 44.
Rxc6 {[%clk 0:00:09.8]} 44... Rxf3 {[%clk 0:01:53.4]} 45. Bc5 {[%clk 0:00:06.2]}
45... Rf4 {[%clk 0:01:49.9]} 46. Rd6 {[%clk 0:00:07.5]} 46... Ne3 {[%clk
0:01:50]} 47. Rd7 {[%clk 0:00:07.1]} 47... Kg7 {[%clk 0:01:50.8]} 48. Kd2 {[%clk
0:00:07.1]} 48... Nf5 {[%clk 0:01:49.3]} 49. d5 {[%clk 0:00:07.8]} 49... Rxh4
{[%clk 0:01:50]} 50. Rd8 {[%clk 0:00:08.6]} 50... Rc4 {[%clk 0:01:48.6]} 51.
Bf8+ {[%clk 0:00:09.3]} 51... Kh7 {[%clk 0:01:49.6]} 52. d6 {[%clk 0:00:10.7]}
52... Rd4+ {[%clk 0:01:46]} 53. Kc3 {[%clk 0:00:11.2]} 53... h4 {[%clk
0:01:40.1]} 54. Be7 {[%clk 0:00:12.5]} 54... Kg7 {[%clk 0:01:36.2]} 55. Bf8+
{[%clk 0:00:13.1]} 55... Kh7 {[%clk 0:01:31.3]} 56. Be7 {[%clk 0:00:13.8]} 56...
g5 {[%clk 0:01:24.8]} 57. Bxf6 {[%clk 0:00:15.1]} 57... Rxd6 {[%clk 0:01:25.3]}
58. Rxd6 {[%clk 0:00:11.6]} 58... Nxd6 {[%clk 0:01:27.2]} 59. Bxg5 {[%clk
0:00:13.1]} 59... Ne4+ {[%clk 0:01:28.4]} 0-1